fUSD/lending_fUSD_20250328
["ID","MTS","AMOUNT","RATE_DAILY","PERIOD"]
[356782150,1743177035676,-151.0,0.0003154,7]
[356782151,1743177035686,-151.0,0.0003154,7]
[356782152,1743177035696,-151.0,0.0003154,7]
[356782153,1743177035705,-151.0,0.0003154,7]
[356782154,1743177035715,-168.934466,0.0003154,7]
[356782155,1743177035724,-168.934466,0.0003154,7]
[356782156,1743177035734,-203.397987,0.0003154,7]
[356782157,1743177035743,-151.0,0.0003154,7]
[356782158,1743177035753,-151.0,0.0003154,7]
[356782159,1743177035764,-151.0,0.0003154,7]
[356782160,1743177035775,-151.0,0.0003154,7]
[356782161,1743177035785,-210.519463,0.00031677,4]
[356782162,1743177035795,-768.6787766,0.0003169,4]
[356782163,1743177035804,-1002.2223372,0.000318,2]
[356782164,1743177035814,-2700.0,0.000319,11]
[356782165,1743177035824,-2791.0,0.00031945,2]
[356782166,1743177035834,-469.81273625,0.00031973,5]
[356782167,1743177035845,-150.12,0.0003199,2]
[356782168,1743177035855,-150.12,0.0003199,2]
[356782169,1743177035864,-150.12,0.0003199,2]
[356782170,1743177035875,-150.12,0.0003199,2]
[356782171,1743177035884,-150.12,0.0003199,2]
[356782172,1743177035893,-150.12,0.0003199,2]
[356782173,1743177035903,-150.12,0.0003199,2]
[356782174,1743177035912,-277.00519343,0.00031999,10]
[356782175,1743177035923,-160.0,0.00032,120]
[356782176,1743177035933,-594685.45691966,0.00032,30]
[356782177,1743177035947,-960.49169938,0.00032,30]
[356782178,1743177035959,-50635.01343781,0.00032,30]
[356782181,1743177038149,-368.49367635,0.00016638,2]
[356782182,1743177038160,-151.0,0.000249,7]
[356782183,1743177038171,-212.22746,0.000249,7]
[356782184,1743177038185,-151.0,0.0003099,7]
[356782185,1743177038197,-3079.83636141,0.00032,30]
[356782186,1743177038212,-3110.01716113,0.00032,30]
[356782187,1743177038226,-2048.003565,0.00032,30]
[356782188,1743177038240,-4059.62035122,0.00032,30]
[356782189,1743177038254,-1795.08269747,0.00032,30]
[356782190,1743177038281,-1374.0,0.00032,5]
[356782191,1743177038291,-15510.6,0.00032,30]
[356782240,1743177040328,-169.24084315,0.000199,2]
[356782241,1743177040339,-659.65,0.00029657,2]
[356782242,1743177040349,-659.65,0.00031921,2]
[356782243,1743177040358,-395.55915685,0.00032,30]
[356782244,1743177040754,-27039.94753,0.00032,30]
[356782245,1743177040768,-4032.71134052,0.00032,30]
[356782246,1743177040781,-5488.20775838,0.00032,30]
[356782249,1743177043115,-189996.17995317,0.00032,30]
[356782250,1743177043127,-15974.58875876,0.00032,30]
[356782251,1743177043137,-378.863119,0.00032,7]
[356782252,1743177043148,-378.863119,0.00032,7]
[356782253,1743177043157,-151.0,0.00032,7]
[356782254,1743177043167,-151.0,0.00032,7]
[356782255,1743177043177,-151.0,0.00032,7]
[356782256,1743177043186,-151.0,0.00032,7]
[356782257,1743177043196,-222.126012,0.00032,7]
[356782258,1743177043205,-151.0,0.00032,7]
[356782259,1743177043214,-151.0,0.00032,7]
[356782260,1743177043224,-151.0,0.00032,7]
[356782261,1743177043234,-151.0,0.00032,7]
[356782262,1743177043243,-151.0,0.00032,7]
[356782263,1743177043253,-168.934466,0.00032,7]
[356782264,1743177043263,-168.934466,0.00032,7]
[356782265,1743177043272,-151.0,0.00032,7]
[356782266,1743177043282,-151.0,0.00032,7]
[356782267,1743177043291,-151.0,0.00032,7]
[356782268,1743177043301,-151.0,0.00032,7]
[356782269,1743177043311,-151.0,0.00032,7]
[356782270,1743177043321,-151.0,0.00032,7]
[356782271,1743177043331,-151.0,0.00032,7]
[356782272,1743177043341,-151.0,0.00032,7]
[356782273,1743177043351,-151.0,0.00032,7]
[356782274,1743177043361,-1932.173292,0.00032,7]
[356782275,1743177043371,-1932.173292,0.00032,7]
[356782276,1743177043381,-151.0,0.00032,7]
[356782277,1743177043391,-151.0,0.00032,7]
[356782278,1743177043401,-2000.0,0.000323,2]
[356782279,1743177043410,-150.0,0.00032408,2]
[356782280,1743177043420,-176.5791382,0.0003259,2]
[356782281,1743177043429,-414.15484422,0.0003259,2]
[356782282,1743177043439,-3785.87126734,0.0003259,2]
[356782283,1743177043448,-11598.11134766,0.0003259,2]
[356782284,1743177043458,-198.81,0.00032646,2]
[356782285,1743177043468,-1150.28445851,0.00032653,2]
[356782286,1743177043478,-150.12,0.00032658,2]
[356782291,1743177043639,-16058.9074977,0.00032668,2]
[356782292,1743177043648,-7665.1612711,0.00032668,2]
[356782293,1743177043658,-150.12,0.0003268,2]
[356782294,1743177043667,-150.12,0.0003268,2]
[356782295,1743177043677,-150.12,0.0003268,2]
[356782296,1743177043687,-150.12,0.0003268,2]
[356782297,1743177043696,-150.12,0.0003268,2]
[356782298,1743177043706,-150.12,0.0003268,2]
[356782299,1743177043716,-378.863119,0.0003269,7]
[356782300,1743177043726,-378.863119,0.0003269,7]
[356782301,1743177043736,-378.863119,0.0003269,7]
[356782302,1743177043746,-378.863119,0.0003269,7]
[356782303,1743177043756,-378.863119,0.0003269,7]
[356782304,1743177043767,-378.863119,0.0003269,7]
[356782305,1743177043776,-207.522527,0.0003269,7]
[356782306,1743177043787,-151.0,0.0003269,7]
[356782307,1743177043798,-151.0,0.0003269,7]
[356782308,1743177043808,-151.0,0.0003269,7]
[356782309,1743177043817,-151.0,0.0003269,7]
[356782310,1743177043827,-210.045943,0.0003269,7]
[356782311,1743177043836,-151.0,0.0003269,7]
[356782312,1743177043846,-151.0,0.0003269,7]
[356782313,1743177043856,-151.0,0.0003269,7]
[356782314,1743177043867,-151.0,0.0003269,7]
[356782315,1743177043876,-151.0,0.0003269,7]
[356782316,1743177043886,-151.0,0.0003269,7]
[356782317,1743177043895,-168.934466,0.0003269,7]
[356782318,1743177043905,-168.934466,0.0003269,7]
[356782319,1743177043914,-168.934466,0.0003269,7]
[356782320,1743177043924,-168.934466,0.0003269,7]
[356782321,1743177043933,-168.934466,0.0003269,7]
[356782322,1743177043943,-168.934466,0.0003269,7]
[356782323,1743177043952,-151.0,0.0003269,7]
[356782324,1743177043962,-151.0,0.0003269,7]
[356782325,1743177043971,-151.0,0.0003269,7]
[356782326,1743177043980,-151.0,0.0003269,7]
[356782327,1743177043989,-151.0,0.0003269,7]
[356782328,1743177043999,-151.0,0.0003269,7]
[356782329,1743177044009,-151.0,0.0003269,7]
[356782330,1743177044022,-151.0,0.0003269,7]
[356782331,1743177044032,-151.0,0.0003269,7]
[356782332,1743177044042,-151.0,0.0003269,7]
[356782333,1743177044052,-151.0,0.0003269,7]
[356782334,1743177044062,-151.0,0.0003269,7]
[356782335,1743177044072,-151.0,0.0003269,7]
[356782336,1743177044081,-1932.173292,0.0003269,7]
[356782337,1743177044090,-1932.173292,0.0003269,7]
[356782338,1743177044101,-1932.173292,0.0003269,7]
[356782339,1743177044111,-1932.173292,0.0003269,7]
[356782340,1743177044120,-1932.173292,0.0003269,7]
[356782341,1743177044130,-1932.173292,0.0003269,7]
[356782342,1743177044141,-151.0,0.0003269,7]
[356782343,1743177044151,-151.0,0.0003269,7]
[356782344,1743177044161,-151.0,0.0003269,7]
[356782345,1743177044171,-151.0,0.0003269,7]
[356782346,1743177044182,-151.0,0.0003269,7]
[356782347,1743177044191,-151.0,0.0003269,7]
[356782348,1743177044201,-19496.75169066,0.0003269,30]
[356782349,1743177044211,-151.36,0.0003269,30]
[356782350,1743177044221,-201367.49915322,0.0003269,120]
[356782351,1743177044230,-298895.62364783,0.0003269,120]
[356782352,1743177044240,-227520.37492549,0.0003269,120]
[356782353,1743177044250,-1000.0,0.0003269,30]
[356782354,1743177044259,-2096.12080478,0.0003269,16]
[356782355,1743177044269,-199.18486211,0.0003269,2]
[356782356,1743177044279,-908.47329911,0.0003269,2]
[356782357,1743177044288,-4767.26649708,0.0003269,2]
[356782358,1743177044298,-643.0,0.00032825,2]
[356782359,1743177044308,-1282.0,0.00032825,2]
[356782360,1743177044318,-2038.0,0.00032825,2]
[356782361,1743177044328,-152.891,0.00032825,2]
[356782362,1743177044337,-1422.0,0.00032825,2]
[356782363,1743177044347,-712.22,0.00032825,2]
[356782364,1743177044356,-788.0,0.00032825,2]
[356782365,1743177044366,-1274.0,0.00032825,2]
[356782366,1743177044377,-1432.0,0.00032825,2]
[356782367,1743177044386,-908.0,0.00032825,2]
[356782368,1743177044396,-4089.0,0.00032825,2]
[356782369,1743177044405,-542.0,0.00032825,2]
[356782370,1743177044414,-3945.0,0.00032825,2]
[356782371,1743177044424,-151.0,0.00032825,2]
[356782372,1743177044433,-1016.0,0.00032825,2]
[356782373,1743177044443,-177.222,0.00032825,2]
[356782374,1743177044452,-208.96,0.00032876,2]
[356782375,1743177044462,-3700.0,0.000329,12]
[356782376,1743177044471,-800.0,0.00033,3]
[356782377,1743177044482,-450.0,0.00033,2]
[356782378,1743177044491,-302.63270034,0.00033167,2]
[356782379,1743177044501,-11357.00359342,0.00033271,30]
[356782380,1743177044510,-261.28240152,0.000333,2]
[356782381,1743177044519,-155.41,0.00033328,2]
[356782382,1743177044529,-10222.49506731,0.000336,2]
[356782383,1743177044539,-700.0,0.00034,4]
[356782384,1743177044548,-659.65,0.00034185,2]
[356782385,1743177044558,-491.10766858,0.00035,120]
[356782386,1743177044567,-500.0,0.00035,2]
[356782387,1743177044577,-240.49,0.00035068,2]
[356782388,1743177044586,-1359.0,0.000351,2]
[356782389,1743177044596,-1150.28445851,0.00035423,2]
[356782390,1743177044606,-832.77991873,0.00035564,6]
[356782391,1743177044615,-832.77991872,0.00035564,6]
[356782392,1743177044626,-155.9,0.00035616,2]
[356782393,1743177044635,-643.0,0.00035825,2]
[356782394,1743177044645,-1282.0,0.00035825,2]
[356782395,1743177044654,-2038.0,0.00035825,2]
[356782396,1743177044663,-1422.0,0.00035825,2]
[356782397,1743177044673,-573.0,0.00035825,2]
[356782398,1743177044682,-788.0,0.00035825,2]
[356782399,1743177044691,-1274.0,0.00035825,2]
[356782400,1743177044701,-1432.0,0.00035825,2]
[356782401,1743177044710,-908.0,0.00035825,2]
[356782402,1743177044719,-4089.0,0.00035825,2]
[356782403,1743177044728,-542.0,0.00035825,2]
[356782404,1743177044737,-3945.0,0.00035825,2]
[356782405,1743177044747,-151.0,0.00035825,2]
[356782406,1743177044757,-1014.0,0.00035825,2]
[356782407,1743177044768,-150.0,0.00035976,2]
[356782408,1743177044778,-150.0,0.00035976,2]
[356782409,1743177044790,-150.0,0.00035976,2]
[356782410,1743177044799,-150.0,0.00035976,2]
[356782411,1743177044810,-206.0,0.0003638,2]
[356782412,1743177044821,-659.65,0.00036449,2]
[356782413,1743177044831,-229.87,0.00037097,5]
[356782414,1743177044842,-302.63270034,0.0003735,2]
[356782415,1743177044851,-206.0,0.0003744,2]
[356782416,1743177044862,-346.77,0.0003753,2]
[356782417,1743177044873,-438.25,0.0003753,2]
[356782418,1743177044883,-438.71,0.0003753,2]
[356782419,1743177044893,-346.77,0.0003753,2]
[356782420,1743177044903,-346.77,0.0003753,2]
[356782421,1743177044913,-346.77,0.0003753,2]
[356782422,1743177044923,-346.77,0.0003753,2]
[356782423,1743177044933,-783.99,0.0003753,2]
[356782424,1743177044943,-634.71862518,0.0003779,2]
[356782425,1743177044953,-1359.7417137,0.000378,2]
[356782426,1743177044963,-152.0,0.00037916,3]
[356782427,1743177044973,-594.47434007,0.00038079,30]
[356782428,1743177044983,-1150.28445851,0.00038194,2]
[356782429,1743177044993,-150.0,0.00038356,2]
[356782430,1743177045003,-150.0,0.00038356,2]
[356782431,1743177045013,-150.0,0.00038356,2]
[356782432,1743177045022,-150.0,0.00038356,2]
[356782433,1743177045032,-150.0,0.00038356,2]
[356782434,1743177045043,-344.07,0.0003836,2]
[356782435,1743177045055,-201.30882714,0.00038383,2]
[356782436,1743177045065,-150.0,0.00038383,2]
[356782437,1743177045075,-150.0,0.00038383,2]
[356782438,1743177045085,-156.679,0.00038383,2]
[356782439,1743177045095,-150.0,0.00038411,2]
[356782440,1743177045105,-150.0,0.00038411,2]
[356782441,1743177045115,-150.0,0.00038438,2]
[356782442,1743177045124,-150.0,0.00038438,2]
[356782443,1743177045135,-198.81,0.00038443,2]
[356782444,1743177045145,-150.0,0.00038466,2]
[356782445,1743177045155,-166.12406296,0.00038466,2]
[356782446,1743177045165,-206.0,0.0003849,2]
[356782447,1743177045175,-249.79929806,0.00038493,2]
[356782448,1743177045186,-487.982,0.00038525,52]
[356782449,1743177045196,-659.65,0.00038712,2]
[356782450,1743177045207,-643.0,0.00038825,2]
[356782451,1743177045216,-1282.0,0.00038825,2]
[356782452,1743177045228,-584.944,0.00038825,2]
[356782453,1743177045238,-1421.0,0.00038825,2]
[356782454,1743177045249,-788.0,0.00038825,2]
[356782455,1743177045259,-1273.0,0.00038825,2]
[356782456,1743177045269,-1431.0,0.00038825,2]
[356782457,1743177045279,-905.0,0.00038825,2]
[356782458,1743177045288,-4085.0,0.00038825,2]
[356782459,1743177045297,-542.0,0.00038825,2]
[356782460,1743177045307,-3941.0,0.00038825,2]
[356782461,1743177045316,-151.0,0.00038825,2]
[356782462,1743177045327,-1211.9948,0.00038888,30]
[356782463,1743177045336,-1000.0,0.000395,30]
[356782464,1743177045346,-206.0,0.0003955,2]
[356782465,1743177045356,-10222.48,0.000397,6]
[356782466,1743177045365,-500.0,0.00039726,15]
[356782467,1743177045374,-561.33485371,0.00039726,15]
[356782468,1743177045383,-500.0,0.00039726,15]
[356782469,1743177045393,-1518.26485915,0.00039781,7]
[356782470,1743177045402,-155.41,0.00039807,2]
[356782471,1743177045412,-1000.0,0.00039814,30]
[356782472,1743177045421,-774.85521824,0.0004,5]
[356782473,1743177045431,-244.65,0.000401,2]
[356782474,1743177045441,-206.0,0.0004061,2]
[356782475,1743177045451,-152.0,0.00040688,4]
[356782476,1743177045461,-1150.28445851,0.00040964,15]
[356782477,1743177045471,-659.65,0.00040976,2]
[356782478,1743177045481,-1046.36671609,0.00041,2]
[356782479,1743177045491,-500.0,0.00041,2]
[356782480,1743177045500,-258.45,0.00041,30]
[356782481,1743177045510,-801.28048977,0.00041,30]
[356782482,1743177045519,-169.0,0.00041,14]
[356782483,1743177045529,-155.0,0.00041,90]
[356782484,1743177045538,-700.0,0.00041095,90]
[356782485,1743177045548,-325.39140786,0.00041095,90]
[356782486,1743177045557,-270.71147617,0.00041096,2]
[356782487,1743177045567,-169.04,0.00041132,120]
[356782488,1743177045577,-1001.5,0.00041178,120]
[356782489,1743177045587,-1000.0,0.00041399,120]
[356782490,1743177045597,-1000.0,0.00041399,120]
[356782491,1743177045606,-2000.0,0.00041399,120]
[356782492,1743177045616,-378.863119,0.00041447,14]
[356782493,1743177045627,-378.863125,0.00041447,14]
[356782494,1743177045637,-1925.79,0.000415,60]
[356782495,1743177045647,-302.63270034,0.00041533,3]
[356782496,1743177045657,-206.0,0.0004166,2]
[356782497,1743177045667,-414.15484422,0.00041745,2]
[356782498,1743177045676,-3785.87126734,0.00041745,2]
[356782499,1743177045686,-11598.11134766,0.00041745,2]
[356782500,1743177045695,-639.0,0.00041825,2]
[356782501,1743177045705,-1281.0,0.00041825,2]
[356782502,1743177045714,-45037.4,0.000419,120]
[356782503,1743177045724,-151.0,0.000419,14]
[356782504,1743177045734,-301.258433,0.000419,14]
[356782505,1743177045846,-168.934466,0.000419,14]
[356782506,1743177045858,-168.934466,0.000419,14]
[356782507,1743177045868,-151.0,0.000419,14]
[356782508,1743177045879,-151.0,0.000419,14]
[356782509,1743177045889,-151.0,0.000419,14]
[356782510,1743177045899,-151.0,0.000419,14]
[356782511,1743177045909,-1932.173292,0.000419,14]
[356782512,1743177045918,-1932.173292,0.000419,14]
[356782514,1743177045927,-151.0,0.000419,14]
[356782515,1743177045937,-500.0,0.00041907,30]
[356782517,1743177045947,-8500.0,0.00041938,11]
[356782519,1743177045956,-151.0,0.00041938,14]
[356782522,1743177045966,-8500.0,0.00041946,11]
[356782523,1743177045976,-8500.0,0.00041946,11]
[356782524,1743177045986,-8500.0,0.00041955,11]
[356782525,1743177045996,-8500.0,0.00041955,11]
[356782526,1743177046006,-8500.0,0.00041964,11]
[356782527,1743177046016,-8500.0,0.00041964,11]
[356782528,1743177046026,-1700.0,0.00041972,60]
[356782529,1743177046036,-8500.0,0.00041973,11]
[356782530,1743177046046,-8500.0,0.00041973,11]
[356782531,1743177046056,-8500.0,0.00041982,11]
[356782532,1743177046067,-8500.0,0.00041982,11]
[356782533,1743177046077,-8500.0,0.00041982,11]
[356782534,1743177046087,-8500.0,0.0004199,11]
[356782535,1743177046097,-8500.0,0.0004199,11]
[356782536,1743177046108,-8500.0,0.0004199,11]
[356782537,1743177046118,-8500.0,0.00041999,11]
[356782538,1743177046128,-8500.0,0.00041999,11]
[356782539,1743177046139,-8500.0,0.00041999,11]
[356782540,1743177046148,-200.0,0.00042,30]
[356782541,1743177046159,-34183.0,0.00042,120]
[356782542,1743177046169,-155.530565,0.00042,120]
[356782543,1743177046179,-4562.40609341,0.00042,11]
[356782544,1743177046189,-14960.54,0.00042,120]
[356782545,1743177046198,-151.0,0.00042,14]
[356782546,1743177046208,-168.934466,0.00042,14]
[356782547,1743177046218,-168.934466,0.00042,14]
[356782548,1743177046228,-151.0,0.00042,14]
[356782549,1743177046238,-151.0,0.00042,14]
[356782550,1743177046247,-151.0,0.00042,14]
[356782551,1743177046256,-1932.173292,0.00042,14]
[356782552,1743177046266,-1932.173292,0.00042,14]
[356782553,1743177046275,-151.0,0.00042,14]
[356782554,1743177046286,-55240.32131596,0.0004238,2]
[356782555,1743177046296,-978.0,0.0004238,120]
[356782556,1743177046305,-500.0,0.0004238,120]
[356782557,1743177046315,-500.0,0.0004238,120]
[356782558,1743177046325,-500.0,0.0004238,120]
[356782559,1743177046335,-500.0,0.0004238,120]
[356782560,1743177046344,-500.0,0.0004238,120]
[356782561,1743177046353,-500.0,0.0004238,120]
[356782562,1743177046363,-500.0,0.0004238,120]
[356782563,1743177046372,-500.0,0.0004238,120]
[356782564,1743177046385,-500.0,0.0004238,120]
[356782565,1743177046395,-500.0,0.0004238,120]
[356782566,1743177046405,-500.0,0.0004238,120]
[356782567,1743177046415,-500.0,0.0004238,120]
[356782568,1743177046424,-500.0,0.0004238,120]
[356782569,1743177046434,-500.0,0.0004238,120]
[356782570,1743177046444,-500.0,0.0004238,120]
[356782571,1743177046454,-500.0,0.0004238,120]
[356782572,1743177046463,-500.0,0.0004238,120]
[356782573,1743177046473,-500.0,0.0004238,120]
[356782574,1743177046483,-500.0,0.0004238,120]
[356782575,1743177046493,-500.0,0.0004238,120]
[356782576,1743177046503,-500.0,0.0004238,120]
[356782577,1743177046512,-500.0,0.0004238,120]
[356782578,1743177046522,-500.0,0.0004238,120]
[356782579,1743177046531,-500.0,0.0004238,120]
[356782580,1743177046541,-500.0,0.0004238,120]
[356782581,1743177046551,-500.0,0.0004238,120]
[356782582,1743177046560,-500.0,0.0004238,120]
[356782583,1743177046569,-500.0,0.0004238,120]
[356782584,1743177046579,-500.0,0.0004238,120]
[356782586,1743177046589,-500.0,0.0004238,120]
[356782588,1743177046598,-500.0,0.0004238,120]
[356782590,1743177046608,-735.0,0.0004238,120]
[356782592,1743177046617,-500.0,0.0004238,120]
[356782593,1743177046627,-500.0,0.0004238,120]
[356782595,1743177046636,-500.0,0.0004238,120]
[356782597,1743177046645,-500.0,0.0004238,120]
[356782599,1743177046655,-500.0,0.0004238,120]
[356782601,1743177046665,-500.0,0.0004238,120]
[356782602,1743177046675,-927.0,0.0004238,120]
[356782604,1743177046684,-500.0,0.0004238,120]
[356782605,1743177046694,-500.0,0.0004238,120]
[356782607,1743177046703,-500.0,0.0004238,120]
[356782609,1743177046712,-500.0,0.0004238,120]
[356782611,1743177046722,-151.0,0.0004238,14]
[356782613,1743177046731,-1700.0,0.0004252,60]
[356782615,1743177046740,-206.0,0.0004272,2]
[356782616,1743177046750,-18520.9966748,0.00042859,2]
[356782617,1743177046760,-8840.3539552,0.00042859,2]
[356782618,1743177046774,-47317.63926742,0.00042888,120]
[356782619,1743177046784,-206.75351,0.00042895,120]
[356782620,1743177046794,-1700.0,0.00043068,60]
[356782621,1743177046803,-500.0,0.00043068,60]
[356782622,1743177046814,-500.0,0.00043068,60]
[356782623,1743177046823,-169.0,0.00043151,90]
[356782624,1743177046832,-150.0,0.000432,30]
[356782625,1743177046844,-150.0,0.000432,30]
[356782626,1743177046854,-150.0,0.000432,30]
[356782627,1743177046865,-150.0,0.000432,30]
[356782628,1743177046875,-162.96796277,0.00043205,120]
[356782629,1743177046885,-659.65,0.0004324,2]
[356782630,1743177046895,-150.0,0.00043337,30]
[356782631,1743177046905,-152.0,0.00043459,5]
[356782632,1743177046915,-150.0,0.00043474,30]
[356782633,1743177046925,-162.96796277,0.00043479,120]
[356782634,1743177046935,-150.0,0.000436,30]
[356782635,1743177046944,-150.0,0.00043611,30]
[356782636,1743177046954,-1700.0,0.00043616,60]
[356782637,1743177046963,-500.0,0.00043616,60]
[356782638,1743177046973,-2104.26075706,0.0004367,5]
[356782639,1743177046983,-1150.28445851,0.00043735,15]
[356782640,1743177046992,-150.0,0.00043749,30]
[356782641,1743177047003,-162.96796277,0.00043753,120]
[356782642,1743177047013,-204.0,0.0004377,30]
[356782643,1743177047023,-206.0,0.0004377,2]
[356782644,1743177047033,-422370.63329736,0.000438,30]
[356782645,1743177047043,-151.0,0.000438,14]
[356782646,1743177047052,-168.934466,0.000438,14]
[356782647,1743177047062,-168.934466,0.000438,14]
[356782648,1743177047072,-151.0,0.000438,14]
[356782649,1743177047082,-283.411343,0.000438,14]
[356782650,1743177047092,-151.0,0.000438,14]
[356782651,1743177047102,-1932.173292,0.000438,14]
[356782652,1743177047112,-1932.173292,0.000438,14]
[356782653,1743177047123,-245.446868,0.000438,14]
[356782654,1743177047133,-151.0,0.000438,14]
[356782655,1743177047143,-151.0,0.000438,14]
[356782656,1743177047153,-900.0,0.00043827,16]
[356782657,1743177047163,-900.0,0.00043827,16]
[356782658,1743177047172,-900.0,0.00043827,16]
[356782659,1743177047182,-900.0,0.00043827,16]
[356782660,1743177047191,-900.0,0.00043827,16]
[356782661,1743177047201,-900.0,0.00043827,16]
[356782662,1743177047211,-900.0,0.00043827,16]
[356782663,1743177047220,-900.0,0.00043827,16]
[356782664,1743177047230,-900.0,0.00043827,16]
[356782665,1743177047239,-964.49513284,0.00043827,16]
[356782666,1743177047249,-500.0,0.00043835,3]
[356782667,1743177047259,-542.33472179,0.00043835,30]
[356782668,1743177047268,-505.81025094,0.00043835,30]
[356782669,1743177047278,-525.99584208,0.00043835,30]
[356782670,1743177047287,-500.0,0.00043835,30]
[356782671,1743177047296,-521.13666003,0.00043835,30]
[356782672,1743177047306,-500.0,0.00043835,30]
[356782673,1743177047315,-615.79648856,0.00043835,30]
[356782674,1743177047325,-547.885546,0.00043835,30]
[356782675,1743177047334,-500.0,0.00043835,30]
[356782676,1743177047344,-541.8163585,0.00043835,30]
[356782677,1743177047354,-505.31134026,0.00043835,30]
[356782678,1743177047364,-500.0,0.00043835,15]
[356782679,1743177047374,-508.51656582,0.00043835,30]
[356782680,1743177047383,-595.28624267,0.00043835,30]
[356782681,1743177047393,-520.59342615,0.00043835,30]
[356782682,1743177047403,-559.83425829,0.00043835,30]
[356782683,1743177047413,-500.0,0.00043835,30]
[356782684,1743177047422,-500.0,0.00043835,30]
[356782685,1743177047431,-500.0,0.00043835,30]
[356782686,1743177047440,-500.0,0.00043835,30]
[356782687,1743177047450,-189.21551358,0.00043835,30]
[356782688,1743177047459,-514.81539504,0.00043835,30]
[356782689,1743177047469,-500.0,0.00043835,30]
[356782690,1743177047478,-505.78184769,0.00043835,30]
[356782691,1743177047488,-500.0,0.00043835,30]
[356782692,1743177047498,-500.0,0.00043835,30]
[356782693,1743177047508,-510.69163159,0.00043835,30]
[356782694,1743177047517,-500.0,0.00043835,30]
[356782695,1743177047527,-500.0,0.00043835,30]
[356782696,1743177047538,-500.0,0.00043835,30]
[356782697,1743177047548,-561.34067473,0.00043835,30]
[356782698,1743177047558,-500.0,0.00043835,30]
[356782699,1743177047567,-550.31801643,0.00043835,30]
[356782700,1743177047577,-500.0,0.00043835,30]
[356782701,1743177047587,-427.74086751,0.00043835,30]
[356782702,1743177047596,-500.0,0.00043835,30]
[356782703,1743177047607,-500.0,0.00043835,30]
[356782704,1743177047617,-500.93037729,0.00043835,30]
[356782705,1743177047629,-506.1503726,0.00043835,30]
[356782706,1743177047641,-529.86210322,0.00043835,30]
[356782707,1743177047651,-500.0,0.00043835,30]
[356782708,1743177047663,-503.22404235,0.00043835,30]
[356782709,1743177047673,-500.0,0.00043835,30]
[356782710,1743177047683,-501.2852017,0.00043835,30]
[356782711,1743177047693,-500.0,0.00043835,30]
[356782712,1743177047703,-540.88308977,0.00043835,30]
[356782713,1743177047712,-527.86364362,0.00043835,30]
[356782714,1743177047723,-500.0,0.00043835,30]
[356782715,1743177047733,-500.0,0.00043835,30]
[356782716,1743177047743,-553.9917987,0.00043835,30]
[356782717,1743177047753,-500.0,0.00043835,30]
[356782718,1743177047763,-1500.0,0.00043835,30]
[356782719,1743177047777,-500.0,0.00043835,30]
[356782720,1743177047787,-500.0,0.00043835,30]
[356782721,1743177047798,-503.70228706,0.00043835,30]
[356782722,1743177047911,-500.0,0.00043835,30]
[356782723,1743177047922,-500.0,0.00043835,30]
[356782724,1743177047933,-560.73420985,0.00043835,30]